[Event "DVM U12w 2023"]
[Site "Magdeburg"]
[Date "2023.12.29"]
[Round "5"]
[White "Kuehne, Malin"]
[Black "Werner, Amelie"]
[Result "1-0"]
[WhiteElo "1264"]
[BlackElo "1311"]
[PlyCount "141"]
[EventDate "2022.12.27"]
[EventType "team-tourn"]
[EventRounds "7"]
[EventCountry "GER"]
[TimeControl "40/5400+30:1800+30"]
[WhiteClock "0:25:32"]
[BlackClock "1:47:12"]

1. d4 {[%emt 0:00:02]} d5 {[%emt 0:00:05]} 2. c4 {[%emt 0:00:05]} c6 {[%emt 0:00:04]} 3. Nf3 {[%emt 0:00:05]} Nf6 {[%emt 0:00:05]} 4. e3 {[%emt 0:01:03]} Bf5 {[%emt 0:00:32]} 5. Be2 {[%emt 0:03:04]} e6 {[%emt 0:02:27]} 6. O-O {[%emt 0:02:51]} Be7 {[%emt 0:01:35]} 7. Nbd2 {[%emt 0:03:35]} O-O {[%emt 0:01:28]} 8. Ne5 {[%emt 0:02:31]} Nbd7 {[%emt 0:01:28]} 9. Ndf3 {[%emt 0:04:51]} Qc7 {[%emt 0:01:06]} 10. Bd2 {[%emt 0:03:56]} h6 {[%emt 0:01:36]} 11. Rc1 {[%emt 0:02:10]} Rac8 {[%emt 0:04:08]} 12. cxd5 {[%emt 0:04:51]} exd5 {[%emt 0:02:57]} 13. Qb3 {[%emt 0:02:13]} Qb6 {[%emt 0:02:42]} 14. Qxb6 {[%emt 0:01:45]} Nxb6 {[%emt 0:00:09]} 15. Ne1 {[%emt 0:03:22]} Na4 {[%emt 0:02:34]} 16. b3 {[%emt 0:01:56]} Ba3 {[%emt 0:00:45]} 17. bxa4 {[%emt 0:03:44]} Bxc1 {[%emt 0:00:06]} 18. Bxc1 {[%emt 0:00:07]} Rfe8 {[%emt 0:00:38]} 19. Bd3 {[%emt 0:01:29]} Bxd3 {[%emt 0:00:29]} 20. N1xd3 {[%emt 0:00:11]} Ne4 {[%emt 0:00:15]} 21. Ba3 {[%emt 0:02:52]} Nc3 {[%emt 0:00:28]} 22. Nb2 {[%emt 0:03:50]} Nxa2 {[%emt 0:00:12]} 23. Nd1 {[%emt 0:01:34]} a5 {[%emt 0:02:25]} 24. Nd3 {[%emt 0:04:59]} Nb4 {[%emt 0:00:28]} 25. Nxb4 {[%emt 0:02:07]} axb4 {[%emt 0:00:06]} 26. Bxb4 {[%emt 0:00:07]} Ra8 {[%emt 0:00:05]} 27. a5 {[%emt 0:01:06]} Ra6 {[%emt 0:00:11]} 28. Nb2 {[%emt 0:01:09]} b6 {[%emt 0:00:16]} 29. axb6 {[%emt 0:03:11]} Rxb6 {[%emt 0:00:04]} 30. Nd3 {[%emt 0:03:28]} Reb8 {[%emt 0:01:10]} 31. Bc5 {[%emt 0:01:58]} Rb1 {[%emt 0:00:16]} 32. h3 {[%emt 0:01:33]} R1b3 {[%emt 0:00:25]} 33. Ne5 {[%emt 0:00:55]} f6 {[%emt 0:01:08]} 34. Nxc6 {[%emt 0:02:58]} Re8 {[%emt 0:00:43]} 35. Ne7+ {[%emt 0:06:49]} Kf7 {[%emt 0:00:07]} 36. Nxd5 {[%emt 0:00:50]} Rd8 {[%emt 0:00:37]} 37. Nf4 {[%emt 0:02:07]} g5 {[%emt 0:01:13]} 38. Nh5 {[%emt 0:02:25]} Kg6 {[%emt 0:00:05]} 39. Ng3 {[%emt 0:03:10]} Rd7 {[%emt 0:01:53]} 40. Ne4 {[%emt 0:03:25]} Rd3 {[%emt 0:00:44]} 41. Nd6 {[%emt 0:33:43]} Rb3 {[%emt 0:30:22]} 42. Ra1 {[%emt 0:01:08]} Rd8 {[%emt 0:01:08]} 43. Ra3 {[%emt 0:01:15]} Rb1+ {[%emt 0:00:17]} 44. Kh2 {[%emt 0:00:09]} Rf1 {[%emt 0:00:14]} 45. Kg3 {[%emt 0:02:28]} Rg1 {[%emt 0:00:13]} 46. Ra6 {[%emt 0:00:39]} h5 {[%emt 0:01:22]} 47. Ne4 {[%emt 0:02:53]} h4+ {[%emt 0:00:16]} 48. Kf3 {[%emt 0:00:24]} Rb1 {[%emt 0:00:14]} 49. Rxf6+ {[%emt 0:00:31]} Kg7 {[%emt 0:00:11]} 50. Rf5 {[%emt 0:02:28]} Kg6 {[%emt 0:00:10]} 51. Rxg5+ {[%emt 0:00:17]} Kh6 {[%emt 0:00:08]} 52. Rf5 {[%emt 0:02:10]} Rb7 {[%emt 0:00:53]} 53. Nd6 {[%emt 0:00:00]} Rbd7 {[%emt 0:00:00]} 54. Nf7+ {[%emt 0:00:00]} Kg6 {[%emt 0:00:00]} 55. Nxd8 {[%emt 0:00:00]} Kxf5 {[%emt 0:00:00]} 56. Nc6 {[%emt 0:00:00]} Rf7 {[%emt 0:00:00]} 57. Ne5 {[%emt 0:00:00]} Rc7 {[%emt 0:00:00]} 58. Nd3 {[%emt 0:00:00]} Rf7 {[%emt 0:00:00]} 59. e4+ {[%emt 0:00:00]} Ke6+ {[%emt 0:00:00]} 60. Ke3 {[%emt 0:00:00]} Rg7 {[%emt 0:00:00]} 61. Nf4+ {[%emt 0:00:00]} Kd7 {[%emt 0:00:00]} 62. d5 {[%emt 0:00:00]} Rg8 {[%emt 0:00:00]} 63. e5 {[%emt 0:00:00]} Rc8 {[%emt 0:00:00]} 64. Kd4 {[%emt 0:00:00]} Ra8 {[%emt 0:00:00]} 65. e6+ {[%emt 0:00:00]} Ke8 {[%emt 0:00:00]} 66. d6 {[%emt 0:00:00]} Ra4+ {[%emt 0:00:00]} 67. Ke5 {[%emt 0:00:00]} Ra1 {[%emt 0:00:00]} 68. Kf6 {[%emt 0:00:00]} Ra4 {[%emt 0:00:00]} 69. Ng6 {[%emt 0:00:00]} Rc4 {[%emt 0:00:00]} 70. Bb6 {[%emt 0:00:00]} Rg4 {[%emt 0:00:00]} 71. d7# {[%emt 0:00:00] normal} 1-0

[Event "DVM U12w 2023"]
[Site "Magdeburg"]
[Date "2023.12.29"]
[Round "5"]
[White "Roessling, Laura Marie"]
[Black "Burchardi, Helena"]
[Result "1-0"]
[WhiteElo "1232"]
[BlackElo "1370"]
[PlyCount "181"]
[EventDate "2022.12.27"]
[EventType "team-tourn"]
[EventRounds "7"]
[EventCountry "GER"]
[TimeControl "40/5400+30:1800+30"]
[WhiteClock "0:22:01"]
[BlackClock "0:34:21"]

1. e4 {[%emt 0:00:03]} e5 {[%emt 0:00:11]} 2. Nf3 {[%emt 0:00:05]} Nc6 {[%emt 0:00:09]} 3. Bc4 {[%emt 0:00:06]} Bc5 {[%emt 0:00:08]} 4. c3 {[%emt 0:00:18]} Nf6 {[%emt 0:00:08]} 5. d4 {[%emt 0:00:09]} exd4 {[%emt 0:00:07]} 6. e5 {[%emt 0:00:11]} d5 {[%emt 0:00:15]} 7. Bb5 {[%emt 0:00:08]} Ne4 {[%emt 0:00:10]} 8. cxd4 {[%emt 0:00:08]} Bb6 {[%emt 0:00:16]} 9. Nc3 {[%emt 0:00:09]} Bg4 {[%emt 0:00:54]} 10. Be3 {[%emt 0:04:16]} O-O {[%emt 0:00:39]} 11. h3 {[%emt 0:00:24]} Bh5 {[%emt 0:00:41]} 12. Qc2 {[%emt 0:01:13]} Qe7 {[%emt 0:03:56]} 13. Nxd5 {[%emt 0:03:26]} Qe6 {[%emt 0:05:07]} 14. Nxb6 {[%emt 0:06:59]} axb6 {[%emt 0:02:17]} 15. Qxe4 {[%emt 0:03:35]} Nb4 {[%emt 0:00:43]} 16. O-O {[%emt 0:01:29]} c6 {[%emt 0:00:47]} 17. Be2 {[%emt 0:02:45]} Bg6 {[%emt 0:01:07]} 18. Qh4 {[%emt 0:04:42]} Nc2 {[%emt 0:00:34]} 19. Rad1 {[%emt 0:01:51]} Qxa2 {[%emt 0:01:39]} 20. Bd3 {[%emt 0:01:04]} Bxd3 {[%emt 0:03:23]} 21. Rxd3 {[%emt 0:00:08]} Qxb2 {[%emt 0:01:47]} 22. Qg3 {[%emt 0:02:37]} Nxe3 {[%emt 0:00:23]} 23. Rxe3 {[%emt 0:00:09]} Qc2 {[%emt 0:01:16]} 24. e6 {[%emt 0:01:32]} fxe6 {[%emt 0:01:04]} 25. Rxe6 {[%emt 0:00:17]} b5 {[%emt 0:01:09]} 26. Re7 {[%emt 0:00:56]} Rf7 {[%emt 0:01:11]} 27. Rxf7 {[%emt 0:01:43]} Kxf7 {[%emt 0:00:38]} 28. Qc7+ {[%emt 0:00:09]} Kg8 {[%emt 0:00:32]} 29. Qxb7 {[%emt 0:00:14]} Rf8 {[%emt 0:00:16]} 30. d5 {[%emt 0:02:06]} cxd5 {[%emt 0:00:34]} 31. Qxd5+ {[%emt 0:00:11]} Kh8 {[%emt 0:00:13]} 32. Qxb5 {[%emt 0:00:07]} Qg6 {[%emt 0:00:26]} 33. Rb1 {[%emt 0:00:43]} h6 {[%emt 0:00:53]} 34. Rb3 {[%emt 0:04:12]} Qd6 {[%emt 0:01:35]} 35. Qb4 {[%emt 0:00:47]} Qd1+ {[%emt 0:01:31]} 36. Kh2 {[%emt 0:00:09]} Rd8 {[%emt 0:00:32]} 37. Rb2 {[%emt 0:03:59]} Qc1 {[%emt 0:02:01]} 38. Re2 {[%emt 0:02:56]} Qc7+ {[%emt 0:06:34]} 39. Kg1 {[%emt 0:02:33]} Qc1+ {[%emt 0:00:38]} 40. Re1 {[%emt 0:00:21]} Qc7 {[%emt 0:00:25]} 41. Qe7 {[%emt 0:31:09]} Qc8 {[%emt 0:33:53]} 42. Ne5 {[%emt 0:03:15]} Kh7 {[%emt 0:02:55]} 43. Qb4 {[%emt 0:02:40]} Rf8 {[%emt 0:04:55]} 44. Qe4+ {[%emt 0:00:47]} Qf5 {[%emt 0:01:16]} 45. Qxf5+ {[%emt 0:00:24]} Rxf5 {[%emt 0:00:08]} 46. Re3 {[%emt 0:00:27]} Kg8 {[%emt 0:00:32]} 47. Kf1 {[%emt 0:00:21]} Kh7 {[%emt 0:00:21]} 48. Ke2 {[%emt 0:01:11]} g6 {[%emt 0:01:14]} 49. Ng4 {[%emt 0:00:41]} h5 {[%emt 0:00:58]} 50. Re7+ {[%emt 0:00:57]} Kh8 {[%emt 0:00:33]} 51. Ne5 {[%emt 0:01:02]} Rf6 {[%emt 0:01:20]} 52. Re8+ {[%emt 0:02:38]} Kg7 {[%emt 0:00:41]} 53. Nf3 {[%emt 0:00:54]} Kf7 {[%emt 0:01:12]} 54. Re5 {[%emt 0:01:29]} Kg7 {[%emt 0:01:07]} 55. Re7+ {[%emt 0:01:12]} Kf8 {[%emt 0:00:18]} 56. Rh7 {[%emt 0:00:38]} Kg8 {[%emt 0:00:41]} 57. Rd7 {[%emt 0:01:41]} Kf8 {[%emt 0:01:21]} 58. Ng5 {[%emt 0:01:06]} Kg8 {[%emt 0:00:59]} 59. h4 {[%emt 0:00:40]} Rf5 {[%emt 0:01:52]} 60. g3 {[%emt 0:01:30]} Re5+ {[%emt 0:00:28]} 61. Kf3 {[%emt 0:01:55]} Rf5+ {[%emt 0:00:35]} 62. Ke3 {[%emt 0:01:04]} Re5+ {[%emt 0:00:37]} 63. Ne4 {[%emt 0:00:15]} Kf8 {[%emt 0:01:01]} 64. Ra7 {[%emt 0:00:41]} Kg8 {[%emt 0:00:40]} 65. Rc7 {[%emt 0:00:53]} Kf8 {[%emt 0:00:16]} 66. Rc5 {[%emt 0:00:17]} Re7 {[%emt 0:01:33]} 67. Kf4 {[%emt 0:00:25]} Rf7+ {[%emt 0:01:34]} 68. Kg5 {[%emt 0:00:53]} Kg7 {[%emt 0:00:16]} 69. f4 {[%emt 0:01:27]} Re7 {[%emt 0:02:02]} 70. Re5 {[%emt 0:00:20]} Rf7 {[%emt 0:00:31]} 71. f5 {[%emt 0:00:45]} gxf5 {[%emt 0:01:03]} 72. Rxf5 {[%emt 0:00:09]} Re7 {[%emt 0:00:23]} 73. Nf6 {[%emt 0:01:59]} Kh8 {[%emt 0:01:50]} 74. Kxh5 {[%emt 0:00:45]} Rf7 {[%emt 0:00:52]} 75. Kh6 {[%emt 0:04:02]} Rg7 {[%emt 0:03:49]} 76. Re5 {[%emt 0:01:08]} Rg6+ {[%emt 0:00:38]} 77. Kh5 {[%emt 0:01:48]} Rh6+ {[%emt 0:01:35]} 78. Kg5 {[%emt 0:00:25]} Rg6+ {[%emt 0:00:33]} 79. Kf5 {[%emt 0:00:56]} Rh6 {[%emt 0:03:12]} 80. h5 {[%emt 0:01:42]} Kg7 {[%emt 0:01:37]} 81. Re6 {[%emt 0:00:31]} Kf7 {[%emt 0:00:18]} 82. g4 {[%emt 0:00:20]} Kg7 {[%emt 0:00:16]} 83. g5 {[%emt 0:01:25]} Kh8 {[%emt 0:00:54]} 84. Re8+ {[%emt 0:00:16]} Kg7 {[%emt 0:00:12]} 85. gxh6+ {[%emt 0:00:14]} Kxh6 {[%emt 0:00:06]} 86. Rh8+ {[%emt 0:02:52]} Kg7 {[%emt 0:00:11]} 87. Rh7+ {[%emt 0:00:07]} Kf8 {[%emt 0:00:13]} 88. Nd5 {[%emt 0:00:24]} Ke8 {[%emt 0:00:34]} 89. Kf6 {[%emt 0:01:52]} Kd8 {[%emt 0:00:10]} 90. Rc7 {[%emt 0:00:09]} Ke8 {[%emt 0:00:05]} 91. h6 {[%emt 0:00:28] normal} 1-0

[Event "DVM U12w 2023"]
[Site "Magdeburg"]
[Date "2023.12.29"]
[Round "5"]
[White "Gerth, Lydia"]
[Black "Kuhlmann, Naya"]
[Result "1-0"]
[WhiteElo "1214"]
[BlackElo "1005"]
[PlyCount "31"]
[EventDate "2022.12.27"]
[EventType "team-tourn"]
[EventRounds "7"]
[EventCountry "GER"]
[TimeControl "40/5400+30:1800+30"]
[WhiteClock "1:18:26"]
[BlackClock "0:45:33"]

1. e4 {[%emt 0:00:01]} e5 {[%emt 0:00:05]} 2. Nf3 {[%emt 0:00:06]} Nc6 {[%emt 0:00:05]} 3. Bc4 {[%emt 0:00:06]} Bc5 {[%emt 0:00:25]} 4. Nc3 {[%emt 0:00:46]} Nf6 {[%emt 0:00:05]} 5. d3 {[%emt 0:00:05]} O-O {[%emt 0:00:07]} 6. Bg5 {[%emt 0:00:06]} b6 {[%emt 0:01:54]} 7. Nd5 {[%emt 0:00:59]} Be7 {[%emt 0:03:29]} 8. Nxe7+ {[%emt 0:04:01]} Qxe7 {[%emt 0:00:19]} 9. O-O {[%emt 0:02:07]} Bb7 {[%emt 0:06:18]} 10. Nh4 {[%emt 0:01:10]} h6 {[%emt 0:03:06]} 11. Nf5 {[%emt 0:01:49]} Qd8 {[%emt 0:01:48]} 12. Bh4 {[%emt 0:00:16]} Re8 {[%emt 0:12:54]} 13. c3 {[%emt 0:02:14]} Na5 {[%emt 0:04:30]} 14. Qf3 {[%emt 0:02:17]} Kf8 {[%emt 0:09:10]} 15. Qg3 {[%emt 0:01:39]} Nh5 {[%emt 0:08:12]} 16. Qg4 {[%emt 0:02:22] normal} 1-0

[Event "DVM U12w 2023"]
[Site "Magdeburg"]
[Date "2023.12.29"]
[Round "5"]
[White "Berger, Jennifer"]
[Black "Hladeniuk, Yelyzaveta"]
[Result "0-1"]
[WhiteElo "1210"]
[BlackElo "1362"]
[PlyCount "76"]
[EventDate "2022.12.27"]
[EventType "team-tourn"]
[EventRounds "7"]
[EventCountry "GER"]
[TimeControl "40/5400+30:1800+30"]
[WhiteClock "1:15:13"]
[BlackClock "1:10:53"]

1. e4 {[%emt 0:00:04]} c6 {[%emt 0:00:08]} 2. d4 {[%emt 0:00:10]} d5 {[%emt 0:00:09]} 3. exd5 {[%emt 0:00:08]} cxd5 {[%emt 0:00:12]} 4. Nf3 {[%emt 0:00:34]} Nf6 {[%emt 0:00:20]} 5. h3 {[%emt 0:00:14]} Bf5 {[%emt 0:00:21]} 6. Bf4 {[%emt 0:00:40]} e6 {[%emt 0:00:28]} 7. Bd3 {[%emt 0:01:58]} Bxd3 {[%emt 0:00:21]} 8. Qxd3 {[%emt 0:01:54]} Be7 {[%emt 0:01:26]} 9. Ne5 {[%emt 0:03:28]} O-O {[%emt 0:06:52]} 10. O-O {[%emt 0:01:30]} Nc6 {[%emt 0:02:35]} 11. Nc3 {[%emt 0:02:23]} Qb6 {[%emt 0:05:43]} 12. Nxc6 {[%emt 0:01:58]} bxc6 {[%emt 0:01:07]} 13. b3 {[%emt 0:01:13]} Rac8 {[%emt 0:02:09]} 14. Na4 {[%emt 0:02:29]} Qa5 {[%emt 0:01:21]} 15. Be3 {[%emt 0:00:54]} Ne4 {[%emt 0:00:43]} 16. f3 {[%emt 0:01:53]} Ng3 {[%emt 0:00:38]} 17. Rfe1 {[%emt 0:01:36]} Nf5 {[%emt 0:01:07]} 18. Bd2 {[%emt 0:00:48]} Qc7 {[%emt 0:01:28]} 19. f4 {[%emt 0:00:52]} c5 {[%emt 0:01:01]} 20. c3 {[%emt 0:01:11]} cxd4 {[%emt 0:00:25]} 21. cxd4 {[%emt 0:00:12]} Qc2 {[%emt 0:00:36]} 22. Qxc2 {[%emt 0:00:38]} Rxc2 {[%emt 0:00:31]} 23. Ba5 {[%emt 0:01:45]} Nxd4 {[%emt 0:01:56]} 24. Rec1 {[%emt 0:00:57]} Ne2+ {[%emt 0:00:25]} 25. Kf1 {[%emt 0:00:42]} Nxc1 {[%emt 0:00:22]} 26. Nc3 {[%emt 0:00:38]} Bf6 {[%emt 0:00:38]} 27. Bb4 {[%emt 0:00:30]} Bxc3 {[%emt 0:00:46]} 28. Bxc3 {[%emt 0:00:22]} Rxc3 {[%emt 0:00:09]} 29. Kg1 {[%emt 0:00:14]} Ne2+ {[%emt 0:00:16]} 30. Kh2 {[%emt 0:00:10]} Nxf4 {[%emt 0:00:33]} 31. b4 {[%emt 0:00:18]} Rfc8 {[%emt 0:00:24]} 32. Rb1 {[%emt 0:00:11]} Rc1 {[%emt 0:00:16]} 33. Rb3 {[%emt 0:00:08]} R8c2 {[%emt 0:00:16]} 34. Rg3 {[%emt 0:00:31]} Rxa2 {[%emt 0:00:31]} 35. b5 {[%emt 0:00:07]} Rcc2 {[%emt 0:00:51]} 36. Rf3 {[%emt 0:00:43]} Rxg2+ {[%emt 0:00:16]} 37. Kh1 {[%emt 0:00:08]} Ra1+ {[%emt 0:00:16]} 38. Rf1 {[%emt 0:00:06]} Rxf1# {[%emt 0:01:01] normal} 0-1

[Event "DVM U12w 2023"]
[Site "Magdeburg"]
[Date "2023.12.29"]
[Round "5"]
[White "Briese, Sophie"]
[Black "Schirmbeck, Lilian"]
[Result "0-1"]
[WhiteElo "1207"]
[BlackElo "1585"]
[PlyCount "56"]
[EventDate "2022.12.27"]
[EventType "team-tourn"]
[EventRounds "7"]
[EventCountry "GER"]
[TimeControl "40/5400+30:1800+30"]
[WhiteClock "0:59:34"]
[BlackClock "0:16:45"]

1. e4 {[%emt 0:00:03]} d5 {[%emt 0:00:04]} 2. exd5 {[%emt 0:00:10]} Qxd5 {[%emt 0:00:06]} 3. Nc3 {[%emt 0:00:09]} Qd6 {[%emt 0:00:04]} 4. d4 {[%emt 0:00:42]} Nf6 {[%emt 0:00:23]} 5. Bd3 {[%emt 0:02:23]} a6 {[%emt 0:03:13]} 6. Bg5 {[%emt 0:02:07]} Nc6 {[%emt 0:01:48]} 7. Nge2 {[%emt 0:02:40]} Bg4 {[%emt 0:08:00]} 8. f3 {[%emt 0:00:53]} Bh5 {[%emt 0:00:52]} 9. a4 {[%emt 0:02:40]} O-O-O {[%emt 0:07:34]} 10. Be3 {[%emt 0:02:20]} Bg6 {[%emt 0:09:55]} 11. Rb1 {[%emt 0:01:59]} Nb4 {[%emt 0:11:35]} 12. Bxg6 {[%emt 0:01:17]} hxg6 {[%emt 0:00:07]} 13. h3 {[%emt 0:01:08]} Nh5 {[%emt 0:10:02]} 14. Ne4 {[%emt 0:01:06]} Qe6 {[%emt 0:03:31]} 15. Qd2 {[%emt 0:01:24]} Nd5 {[%emt 0:01:48]} 16. Bf2 {[%emt 0:01:57]} Qf5 {[%emt 0:11:16]} 17. g4 {[%emt 0:01:53]} Qxf3 {[%emt 0:00:29]} 18. N4g3 {[%emt 0:02:59]} Nxg3 {[%emt 0:00:47]} 19. Nxg3 {[%emt 0:00:57]} Nf4 {[%emt 0:05:20]} 20. Qc3 {[%emt 0:03:39]} Qxc3+ {[%emt 0:00:00]} 21. bxc3 {[%emt 0:00:08]} Rxh3 {[%emt 0:00:00]} 22. Rxh3 {[%emt 0:00:34]} Nxh3 {[%emt 0:00:00]} 23. Ne4 {[%emt 0:00:56]} Nxf2 {[%emt 0:00:00]} 24. Kxf2 {[%emt 0:00:06]} e6 {[%emt 0:04:51]} 25. Kf3 {[%emt 0:02:14]} Be7 {[%emt 0:00:43]} 26. Ke3 {[%emt 0:03:13]} Rh8 {[%emt 0:02:20]} 27. c4 {[%emt 0:05:05]} f5 {[%emt 0:02:51]} 28. gxf5 {[%emt 0:00:14]} gxf5 {[%emt 0:00:06] normal} 0-1

[Event "DVM U12w 2023"]
[Site "Magdeburg"]
[Date "2023.12.29"]
[Round "5"]
[White "Albrecht, Sidney Jenna"]
[Black "Stepanova, Anhelina"]
[Result "0-1"]
[WhiteElo "1188"]
[BlackElo "1172"]
[PlyCount "68"]
[EventDate "2022.12.27"]
[EventType "team-tourn"]
[EventRounds "7"]
[EventCountry "GER"]
[TimeControl "40/5400+30:1800+30"]
[WhiteClock "0:41:15"]
[BlackClock "1:16:52"]

1. c4 {[%emt 0:00:04]} e5 {[%emt 0:00:17]} 2. Nc3 {[%emt 0:00:09]} Nf6 {[%emt 0:00:59]} 3. g3 {[%emt 0:00:08]} Bc5 {[%emt 0:01:00]} 4. Bg2 {[%emt 0:00:09]} a6 {[%emt 0:00:44]} 5. e3 {[%emt 0:00:49]} Nc6 {[%emt 0:00:28]} 6. Nge2 {[%emt 0:00:23]} d6 {[%emt 0:00:29]} 7. d4 {[%emt 0:00:30]} exd4 {[%emt 0:00:43]} 8. exd4 {[%emt 0:00:07]} Ba7 {[%emt 0:00:11]} 9. O-O {[%emt 0:01:21]} h6 {[%emt 0:00:45]} 10. Re1 {[%emt 0:00:48]} O-O {[%emt 0:00:32]} 11. b3 {[%emt 0:05:35]} Re8 {[%emt 0:04:14]} 12. Bb2 {[%emt 0:00:49]} Bf5 {[%emt 0:01:08]} 13. Nd5 {[%emt 0:08:57]} Nxd5 {[%emt 0:00:43]} 14. Bxd5 {[%emt 0:00:11]} Nb4 {[%emt 0:01:20]} 15. Nf4 {[%emt 0:09:56]} Rxe1+ {[%emt 0:00:30]} 16. Qxe1 {[%emt 0:00:56]} Nc2 {[%emt 0:00:11]} 17. Qd1 {[%emt 0:00:28]} Nxa1 {[%emt 0:00:10]} 18. Qxa1 {[%emt 0:00:08]} c6 {[%emt 0:00:25]} 19. Bg2 {[%emt 0:00:53]} f6 {[%emt 0:02:43]} 20. d5 {[%emt 0:03:49]} c5 {[%emt 0:00:20]} 21. h3 {[%emt 0:01:48]} Qe7 {[%emt 0:00:36]} 22. Nh5 {[%emt 0:01:43]} Re8 {[%emt 0:02:09]} 23. Bc3 {[%emt 0:05:02]} Rf8 {[%emt 0:02:04]} 24. g4 {[%emt 0:01:35]} Be4 {[%emt 0:00:20]} 25. f3 {[%emt 0:00:54]} Bg6 {[%emt 0:01:41]} 26. Nf4 {[%emt 0:00:24]} Qe3+ {[%emt 0:00:10]} 27. Kh1 {[%emt 0:04:00]} Qxf4 {[%emt 0:00:25]} 28. h4 {[%emt 0:07:42]} h5 {[%emt 0:01:33]} 29. g5 {[%emt 0:01:08]} Qxh4+ {[%emt 0:01:44]} 30. Kg1 {[%emt 0:01:50]} Qxg5 {[%emt 0:00:08]} 31. Kf1 {[%emt 0:01:48]} Bd3+ {[%emt 0:00:25]} 32. Kf2 {[%emt 0:00:24]} Re8 {[%emt 0:00:27]} 33. Qd1 {[%emt 0:01:07]} Re2+ {[%emt 0:00:24]} 34. Kf1 {[%emt 0:00:40]} Qxg2# {[%emt 0:00:40] normal} 0-1

[Event "DVM U12w 2023"]
[Site "Magdeburg"]
[Date "2023.12.29"]
[Round "5"]
[White "Ruddat, Maila"]
[Black "Kuebart, Ela Marie"]
[Result "1-0"]
[WhiteElo "1187"]
[BlackElo "1325"]
[PlyCount "135"]
[EventDate "2022.12.27"]
[EventType "team-tourn"]
[EventRounds "7"]
[EventCountry "GER"]
[TimeControl "40/5400+30:1800+30"]
[WhiteClock "0:58:31"]
[BlackClock "0:10:58"]

1. e4 {[%emt 0:00:06]} e5 {[%emt 0:00:12]} 2. Nf3 {[%emt 0:00:19]} Nc6 {[%emt 0:00:13]} 3. Bc4 {[%emt 0:00:25]} Nf6 {[%emt 0:01:01]} 4. d3 {[%emt 0:00:25]} Bc5 {[%emt 0:00:37]} 5. c3 {[%emt 0:00:44]} d6 {[%emt 0:00:46]} 6. h3 {[%emt 0:00:33]} Be6 {[%emt 0:00:23]} 7. Bb3 {[%emt 0:00:13]} O-O {[%emt 0:00:30]} 8. O-O {[%emt 0:00:33]} Qd7 {[%emt 0:05:17]} 9. Re1 {[%emt 0:00:52]} Rad8 {[%emt 0:01:41]} 10. Nbd2 {[%emt 0:01:05]} d5 {[%emt 0:00:51]} 11. Qe2 {[%emt 0:00:37]} d4 {[%emt 0:01:37]} 12. c4 {[%emt 0:04:13]} Rfe8 {[%emt 0:04:17]} 13. Nf1 {[%emt 0:02:39]} h6 {[%emt 0:03:57]} 14. Ng3 {[%emt 0:00:15]} a6 {[%emt 0:06:38]} 15. Bd2 {[%emt 0:02:41]} Bb4 {[%emt 0:02:11]} 16. a3 {[%emt 0:02:50]} Bxd2 {[%emt 0:00:43]} 17. Nxd2 {[%emt 0:00:50]} Na5 {[%emt 0:01:46]} 18. Ba2 {[%emt 0:00:34]} b5 {[%emt 0:06:40]} 19. cxb5 {[%emt 0:00:50]} axb5 {[%emt 0:02:19]} 20. Bxe6 {[%emt 0:00:46]} Rxe6 {[%emt 0:01:05]} 21. Nf5 {[%emt 0:00:29]} Rc6 {[%emt 0:01:44]} 22. Rac1 {[%emt 0:00:57]} Rb8 {[%emt 0:07:50]} 23. Qf3 {[%emt 0:00:50]} Kh7 {[%emt 0:03:52]} 24. Qg3 {[%emt 0:01:02]} g6 {[%emt 0:01:30]} 25. Nh4 {[%emt 0:02:07]} Rxc1 {[%emt 0:05:09]} 26. Rxc1 {[%emt 0:00:15]} Qe7 {[%emt 0:01:14]} 27. Ndf3 {[%emt 0:01:37]} Re8 {[%emt 0:02:00]} 28. Rc2 {[%emt 0:02:11]} Nh5 {[%emt 0:05:22]} 29. Qg4 {[%emt 0:01:34]} c6 {[%emt 0:02:14]} 30. b4 {[%emt 0:00:25]} Nb3 {[%emt 0:02:49]} 31. Rxc6 {[%emt 0:04:07]} Rg8 {[%emt 0:05:46]} 32. Nh2 {[%emt 0:04:48]} Nf4 {[%emt 0:02:05]} 33. g3 {[%emt 0:00:47]} h5 {[%emt 0:01:33]} 34. Qd1 {[%emt 0:01:20]} Nxh3+ {[%emt 0:01:24]} 35. Kg2 {[%emt 0:00:31]} Qd7 {[%emt 0:00:56]} 36. Rc2 {[%emt 0:02:11]} Qe6 {[%emt 0:06:00]} 37. Rb2 {[%emt 0:00:26]} Ng5 {[%emt 0:00:47]} 38. N4f3 {[%emt 0:04:06]} Qh3+ {[%emt 0:00:48]} 39. Kg1 {[%emt 0:01:20]} Nxf3+ {[%emt 0:00:40]} 40. Nxf3 {[%emt 0:00:35]} Rc8 {[%emt 0:01:04]} 41. Rxb3 {[%emt 0:30:36]} Qg4 {[%emt 0:30:39]} 42. Kg2 {[%emt 0:00:34]} h4 {[%emt 0:00:06]} 43. Qh1 {[%emt 0:00:31]} g5 {[%emt 0:01:53]} 44. Qh3 {[%emt 0:00:22]} Qxh3+ {[%emt 0:00:20]} 45. Kxh3 {[%emt 0:00:12]} Rg8 {[%emt 0:00:20]} 46. g4 {[%emt 0:00:26]} Kh6 {[%emt 0:00:36]} 47. Nxe5 {[%emt 0:00:28]} f6 {[%emt 0:00:26]} 48. Nc6 {[%emt 0:00:31]} Rc8 {[%emt 0:01:35]} 49. Nxd4 {[%emt 0:00:29]} Rc1 {[%emt 0:00:31]} 50. Kg2 {[%emt 0:00:32]} f5 {[%emt 0:01:13]} 51. Nxf5+ {[%emt 0:00:26]} Kg6 {[%emt 0:01:17]} 52. Nd4 {[%emt 0:00:52]} Kf6 {[%emt 0:00:38]} 53. Nxb5 {[%emt 0:00:12]} Ke5 {[%emt 0:00:12]} 54. Nc3 {[%emt 0:00:28]} Rc2 {[%emt 0:00:39]} 55. b5 {[%emt 0:00:20]} Kf4 {[%emt 0:00:13]} 56. b6 {[%emt 0:00:11]} Kxg4 {[%emt 0:00:07]} 57. b7 {[%emt 0:00:17]} h3+ {[%emt 0:00:07]} 58. Kg1 {[%emt 0:00:33]} Kf3 {[%emt 0:01:04]} 59. b8=Q {[%emt 0:00:31]} Rxf2 {[%emt 0:00:35]} 60. Qf8+ {[%emt 0:01:04]} Kg4 {[%emt 0:00:45]} 61. Qxf2 {[%emt 0:00:21]} h2+ {[%emt 0:00:10]} 62. Kxh2 {[%emt 0:00:14]} Kh5 {[%emt 0:00:17]} 63. Qg2 {[%emt 0:00:31]} g4 {[%emt 0:00:09]} 64. Rb8 {[%emt 0:00:41]} Kg5 {[%emt 0:00:28]} 65. Rf8 {[%emt 0:00:12]} Kh6 {[%emt 0:00:36]} 66. Rg8 {[%emt 0:00:23]} g3+ {[%emt 0:00:26]} 67. Qxg3 {[%emt 0:00:12]} Kh7 {[%emt 0:00:09]} 68. Qg6# {[%emt 0:00:42] normal} 1-0